[Event "Pan-American Collegiate-ch 2025"]
[Site "Charlotte"]
[Date "2025.01.04"]
[Round "4.21"]
[White "Vettese, Nicholas"]
[Black "Checa, Nicolas"]
[Result "1/2-1/2"]
[Annotator "TA"]
[ECO "B15"]
[WhiteElo "2328"]
[BlackElo "2517"]
[PlyCount "95"]
[EventDate "2025.01.02"]
[EventType "team-tourn"]
[EventCountry "USA"]
[SourceTitle "playchess.com"]
[Source "ChessBase"]
[SourceQuality "1"]
[TimeControl "5400+30"]

{[%evp 9,95,25,22,19,27,21,13,17,22,15,22,18,27,31,33,29,29,33,37,41,47,39,36,15,16,22,20,16,26,4,17,7,21,0,0,0,0,0,0,0,0,3,5,5,2,4,7,8,10,8,5,5,5,0,0,0,0,0,0,0,0,0,0,0,0,-32,-14,-7,0,-3,92,95,93,95,97,103,99,0,0,0,0,0,0,0,0,0,0,0]} 1. e4 {[%emt 0:00:02]} c6 {[%emt 0:02:37]} 2. d4 {[%emt 0:00:14]} d5 {[%emt 0:00:04]} 3. Nc3 {[%emt 0:00:07]} dxe4 {[%emt 0:00:09]} 4. Nxe4 {[%emt 0:00:08]} Nf6 {[%emt 0:00:06]} 5. Qd3 {[%emt 0:00:06]} Nxe4 {[%emt 0:06:12]} 6. Qxe4 {[%emt 0:00:06]} Qd5 {[%emt 0:00:03]} 7. Bd3 {[%emt 0:00:07]} Qxe4+ {[%emt 0:00:08]} 8. Bxe4 {[%emt 0:00:06]} Nd7 {[%emt 0:00:03]} 9. Nf3 {[%emt 0:03:07]} g6 {[%emt 0:00:47]} 10. c3 {[%emt 0:03:57]} Bg7 {[%emt 0:00:37]} 11. O-O {[%emt 0:00:39]} O-O {[%emt 0:00:24]} 12. Re1 {[%emt 0:01:41]} Re8 {[%emt 0:01:14]} 13. Bc2 {[%emt 0:00:35]} b6 {[%emt 0:03:31]} 14. Bg5 {[%emt 0:00:25][%cal Bc1g5,Bg5h4,Bh4g3][%mdl 32]} Kf8 {[%emt 0:01:38]} 15. a4 {[%emt 0:06:41]} a5 {[%emt 0:01:42]} 16. Re3 {[%emt 0:03:16]} Bb7 {[%emt 0:03:47]} 17. Rae1 {[%emt 0:00:12]} e6 {[%emt 0:01:50]} 18. Bh4 {[%emt 0:05:20]} h6 {[%emt 0:01:57]} 19. Bg3 {[%emt 0:01:03]} c5 {[%emt 0:11:57]} 20. dxc5 {[%emt 0:06:55]} bxc5 {[%emt 0:00:35]} 21. Bd3 {[%emt 0:12:38] Black should prevent Bb5.} Bc6 {[%emt 0:02:25]} 22. Bb5 {[%emt 0:00:08]} Rec8 {[%emt 0:00:32]} 23. Rd3 {[%emt 0:54:27] [#] Bxc6 would now be deadly.} Nb6 {[%emt 0:03:25][%cal Bd7b6,Bb6c4,Bc4b2][%mdl 32]} 24. Rd6 {[%emt 0:00:00]} Bxb5 {[%emt 0:02:02]} 25. axb5 {[%emt 0:00:00]} Nc4 {[%emt 0:00:54][%csl LRb2,LRd6] [#]} 26. Nd2 $1 {[%emt 0:00:00]} Nxb2 {[%emt 0:01:45][%cal Oa5a4] Strongly threatening ...a4!} 27. Rb1 {[%emt 0:00:00]} Bxc3 {[%emt 0:01:23]} 28. Ne4 $1 {[%emt 0:00:00]} Bg7 {[%emt 0:09:31]} 29. Rd7 $1 {[%emt 0:00:00] Hoping for b6.} (29. b6 $2 Rab8 30. Rd7 Rxb6 $19) 29... Ke8 {[%emt 0:02:54]} 30. Rb7 {[%emt 0:00:00]} Nc4 {[%emt 0:00:14]} 31. Rc1 {[%emt 0:00:00]} Rd8 {[%emt 0:00:56]} 32. h4 {[%emt 0:00:00]} a4 $1 {[%emt 0:01:34][%cal Oa4a3]} 33. Rxc4 {[%emt 0:00:00]} a3 $1 {[%emt 0:00:36] Threatens to win with ...Rd1+.} 34. Nd6+ {[%emt 0:00:00]} (34. Rxc5 $2 Rd1+ (34... a2 35. Rc1 $17) 35. Kh2 a2 $19) (34. Nxc5 a2 35. Nb3 Rd3 $17 (35... a1=Q+ 36. Nxa1 Rxa1+ 37. Kh2 $16)) 34... Rxd6 {[%emt 0:15:23]} 35. Bxd6 {[%emt 0:00:00] aiming for Re7+.} a2 {[%emt 0:00:04]} 36. Rc1 {[%emt 0:00:00] Re7+ is the strong threat.} (36. Re7+ $2 Kd8 37. Rc1 a1=Q (37... a1=B $2 38. Rxf7 Ra3 39. b6 $18) 38. Rxa1 Rxa1+ 39. Kh2 Bf8 $19) 36... c4 {[%emt 0:04:10]} 37. b6 {[%emt 0:00:00][%cal Bb5b6,Bb6b7][%mdl 32]} a1=Q {[%emt 0:00:32]} 38. Rxa1 {[%emt 0:00:00]} Rxa1+ $11 {[%emt 0:00:10][%mdl 4096] Endgame. KRB-KRB} 39. Kh2 {[%emt 0:00:00]} Rb1 {[%emt 0:01:37]} (39... Bf6 $11) 40. Re7+ $16 {[%emt 0:00:00]} Kd8 {[%emt 0:00:22]} 41. Rxf7 {[%emt 0:00:00]} Bd4 {[%emt 0:00:08]} 42. b7 {[%emt 0:00:00] White is more active.} c3 {[%emt 0:00:14]} 43. Rc7 {[%emt 0:04:48]} (43. b8=B $6 c2 44. Rf8+ Kd7 $11) (43. b8=N $6 Rxb8 44. Rf8+ (44. Bxb8 c2 $16) 44... Kd7 45. Bxb8 c2 $11) (43. g3 $16 c2 44. Bf4 (44. Rc7 Rxb7 45. Rxc2 Rb2 $11)) 43... Bxf2 $11 {[%emt 0:03:31] The position is equal.} 44. Be5 {[%emt 0:03:03] And now Rc8+ would win.} (44. Rxc3 Rxb7 45. g3 Rb2 $15) 44... Ba7 {[%emt 0:00:20]} 45. Rc8+ {[%emt 0:00:07]} (45. Rxc3 Bg1+ 46. Kh3 Rxb7) 45... Kd7 {[%emt 0:00:05]} 46. Rc7+ {[%emt 0:00:04]} (46. b8=B $2 Bg1+ (46... Kxc8 $2 47. Bxa7 c2 48. Be3 $19) 47. Kg3 Kxc8 $19) (46. b8=Q $2 Bxb8 47. Rxb8 c2 $19) 46... Kd8 {[%emt 0:00:06]} 47. Rc8+ {[%emt 0:00:52]} (47. Rxc3 Bg1+ 48. Kh3 Rxb7) 47... Kd7 {[%emt 0:00:02]} 48. Rc7+ {[%emt 0:00:57] Weighted Error Value: White=0.08 (flawless) /Black=0.05 (flawless) .  Mistake:       	White=1     	Black=1      Inaccurate:     	White=1     	---        OK:         	White=17    	Black=24     Best:        	White=3     	Black=3      Strong:       	White=2     	Black=2} (48. b8=B $2 {is the wrong capture.} Bg1+ (48... Kxc8 $2 49. Bxa7 c2 50. Bf4 $19) 49. Kh3 Kxc8 $19) (48. b8=Q Bxb8 49. Rxb8 c2 $19) 1/2-1/2

[Event "Pan-American Collegiate-ch 2025"]
[Site "Charlotte"]
[Date "2025.01.04"]
[Round "4.22"]
[White "Guo, Arthur"]
[Black "Li, Yunshan"]
[Result "1-0"]
[Annotator "TA"]
[ECO "B48"]
[WhiteElo "2519"]
[BlackElo "2249"]
[PlyCount "105"]
[EventDate "2025.01.02"]
[EventType "team-tourn"]
[EventCountry "USA"]
[SourceTitle "playchess.com"]
[Source "ChessBase"]
[SourceQuality "1"]
[TimeControl "5400+30"]

{[%evp 16,105,19,23,33,0,0,9,0,14,23,8,17,10,0,0,0,0,47,35,75,61,70,57,84,90,86,77,77,87,85,88,90,77,81,83,80,86,74,83,244,241,244,242,374,303,531,173,556,501,562,573,579,581,586,572,572,572,789,779,796,756,1072,1015,1383,1373,1212,1173,2240,1934,1981,1725,8725,7475,4954,5313,5964,5992,12797,10419,29939,29946,29987,29988,29988,29989,29990,29991,29991,29992,29992,29993]} 1. e4 {[%emt 0:02:24]} c5 {[%emt 0:00:22]} 2. Nf3 {[%emt 0:00:09]} e6 {[%emt 0:00:11]} 3. d4 {[%emt 0:00:09]} cxd4 {[%emt 0:00:04]} 4. Nxd4 {[%emt 0:00:04]} Nc6 {[%emt 0:00:05]} 5. Nc3 {[%emt 0:00:08]} Qc7 {[%emt 0:00:25]} 6. Be3 {[%emt 0:00:14]} a6 {[%emt 0:00:25]} 7. Qd2 {[%emt 0:00:17]} Nf6 {[%emt 0:00:29]} 8. O-O-O {[%emt 0:00:44]} Bb4 {[%emt 0:00:32]} 9. f3 {[%emt 0:00:22]} Ne7 {[%emt 0:04:48]} 10. g4 {[%emt 0:14:14][%cal Bg2g4,Bg4g5][%mdl 32]} Bxc3 {[%emt 0:05:49]} 11. Qxc3 {[%emt 0:01:43]} Qxc3 {[%emt 0:00:11]} 12. bxc3 {[%emt 0:00:04]} d5 {[%emt 0:01:48]} 13. g5 {[%emt 0:09:35]} Nd7 {[%emt 0:00:26]} 14. Nb3 {[%emt 0:11:04]} b6 {[%emt 0:03:44]} 15. exd5 {[%emt 0:11:42]} Nxd5 {[%emt 0:01:47]} 16. Bd4 {[%emt 0:00:08][%cal Oh2h4]} O-O {[%emt 0:01:40]} (16... Bb7 $11) 17. c4 $36 {[%emt 0:00:05][%mdl 2048] White fights for an advantage.} Nb4 {[%emt 0:02:23]} 18. a3 {[%emt 0:01:07]} Nc6 {[%emt 0:00:21]} 19. Be3 {[%emt 0:00:27]} Rd8 {[%emt 0:11:13]} 20. Rd6 {[%emt 0:07:07]} Bb7 {[%emt 0:01:54]} 21. Be2 {[%emt 0:01:56]} Kf8 {[%emt 0:08:14]} 22. Rhd1 {[%emt 0:00:27]} Ke7 {[%emt 0:00:23]} 23. f4 {[%emt 0:02:19]} Rac8 {[%emt 0:03:12]} 24. h4 {[%emt 0:07:27]} a5 {[%emt 0:13:40]} 25. a4 {[%emt 0:00:13] White has more active pieces.} Rc7 {[%emt 0:15:55]} 26. Kb2 {[%emt 0:10:53]} Rdc8 {[%emt 0:01:57]} 27. c3 {[%emt 0:00:56]} (27. c5 {looks sharper.} Ncb8 28. f5 Bd5 29. c4) 27... Ke8 $2 {[%emt 0:05:47] [#]} (27... Ba6 $16) 28. c5 $1 $18 {[%emt 0:02:37]} bxc5 {[%emt 0:11:29] [#]} 29. Bb5 $1 {[%emt 0:00:02] This pair of bishops is nice.} (29. Bxc5 Nxc5 30. Nxc5 Na7 31. Nxb7 Rxb7+ 32. Kc2 Rbc7 $15) 29... Rb8 {[%emt 0:01:48]} (29... Ncb8 {is a better defense.} 30. f5 (30. Nxa5 Bf3 $18) 30... Ke7) 30. Kc1 {[%emt 0:02:41]} (30. Nxc5 Nxc5 31. Bxc5 Ba6 $16) 30... c4 $2 {[%emt 0:01:43]} (30... Nd4) 31. Nd4 $2 {[%emt 0:05:55]} ({Stronger than} 31. Bxc4 Ne7 (31... Nce5 32. Bb5 $16) 32. Nxa5 Bf3 $11) (31. Nc5 Nxc5 32. Bxc5) 31... Ne7 $2 {[%emt 0:02:29]} (31... Nxd4 32. Bxd4 Bd5) 32. Nxe6 {[%emt 0:01:15] Black is weak on the dark squares} fxe6 {[%emt 0:00:08]} 33. Rxd7 {[%emt 0:00:05]} (33. Bxd7+ Rxd7 34. Rxd7 Be4 $16) 33... Rxd7 {[%emt 0:01:04]} 34. Rxd7 {[%emt 0:00:01]} ({Less strong is} 34. Bxd7+ Kf7 $16) 34... Bc6 {[%emt 0:00:33] [#]} 35. Rxe7+ $1 {[%emt 0:01:40][%mdl 512]} Kxe7 {[%emt 0:00:02]} 36. Bxc6 {[%emt 0:00:01]} e5 {[%emt 0:00:47]} 37. fxe5 {[%emt 0:01:18]} Ke6 {[%emt 0:00:09]} 38. Bb5 {[%emt 0:00:03]} Rc8 {[%emt 0:00:29]} 39. Bb6 {[%emt 0:00:16]} Kxe5 {[%emt 0:00:12]} 40. Bxa5 {[%emt 0:00:13]} Kf4 {[%emt 0:00:15]} 41. Bd7 {[%emt 0:00:05]} Ra8 {[%emt 0:00:16]} 42. Bc7+ {[%emt 0:00:09]} Ke3 {[%emt 0:00:08]} 43. Kc2 {[%emt 0:01:00]} Ke2 {[%emt 0:00:29]} 44. Bb5 {[%emt 0:00:09]} Rc8 {[%emt 0:01:00]} 45. Bb6 {[%emt 0:00:08] Strongly threatening a5.} Kf3 {[%emt 0:00:07]} 46. a5 {[%emt 0:00:14][%cal Ba4a5,Ba5a6,Ba6a7][%mdl 32]} Kg3 {[%emt 0:00:12]} 47. h5 {[%emt 0:00:21][%cal Bh4h5,Bh5h6,Bh6g7][%mdl 32] White wants to mate with h6.} Kh4 {[%emt 0:00:10]} 48. h6 {[%emt 0:00:27]} Kxg5 {[%emt 0:00:43]} 49. hxg7 {[%emt 0:00:05]} Kg6 {[%emt 0:01:12]} 50. Bd4 {[%emt 0:00:14]} Kf7 {[%emt 0:00:49]} 51. a6 {[%emt 0:00:10]} h5 {[%emt 0:00:28][%cal Bh7h5,Bh5h4][%mdl 32]} 52. a7 {[%emt 0:00:04]} h4 {[%emt 0:00:11] [#]} 53. Bxc4+ $1 {[%emt 0:00:22]} 1-0

[Event "Pan-American Collegiate-ch 2025"]
[Site "Charlotte"]
[Date "2025.01.04"]
[Round "4.23"]
[White "Mao, Fengxi"]
[Black "Lu, Maximillian"]
[Result "1-0"]
[Annotator "TA"]
[ECO "A30"]
[WhiteElo "2121"]
[BlackElo "2404"]
[PlyCount "99"]
[EventDate "2025.01.02"]
[EventType "team-tourn"]
[EventCountry "USA"]
[SourceTitle "playchess.com"]
[Source "ChessBase"]
[SourceQuality "1"]
[TimeControl "5400+30"]

{[%evp 10,99,-3,-41,-33,-39,0,-6,0,-31,26,4,21,9,64,63,69,66,63,75,61,46,49,50,56,30,118,115,114,70,60,58,71,77,76,71,77,74,81,72,68,80,138,138,127,137,137,134,129,95,109,109,93,91,87,85,78,87,121,112,121,108,271,273,333,331,396,384,393,402,370,381,443,375,392,371,377,380,381,364,460,470,467,463,454,437,547,603,1104,1088,956,910]} 1. Nf3 {[%emt 0:02:39]} c5 {[%emt 0:05:49]} 2. b3 {[%emt 0:00:22]} Nc6 {[%emt 0:00:19]} 3. Bb2 {[%emt 0:00:16]} Nf6 {[%emt 0:00:04]} 4. c4 {[%emt 0:01:14]} d5 {[%emt 0:00:16]} 5. cxd5 {[%emt 0:00:31]} Nxd5 {[%emt 0:00:02]} 6. g3 {[%emt 0:03:54]} f6 {[%emt 0:01:00]} 7. Nc3 {[%emt 0:01:17]} Nc7 {[%emt 0:03:53]} 8. Bg2 {[%emt 0:00:50]} e5 {[%emt 0:00:08][%cal Be7e5,Be5d4][%mdl 32]} 9. O-O {[%emt 0:00:30]} Be6 {[%emt 0:00:18]} (9... Bg4 $15) 10. e3 {[%emt 0:21:16][%cal Od2d4]} Qd7 {[%emt 0:04:04]} 11. d4 {[%emt 0:03:21]} cxd4 {[%emt 0:09:00]} ({Black should try} 11... exd4 $11 12. exd4 O-O-O) 12. exd4 $14 {[%emt 0:00:57]} exd4 {[%emt 0:00:12]} 13. Ne2 {[%emt 0:01:37][%cal Oa1c1]} d3 {[%emt 0:10:42]} 14. Ned4 {[%emt 0:00:41] Hoping for Nxe6.} O-O-O {[%emt 0:03:35][%cal Rc6d4]} 15. Rc1 {[%emt 0:07:29]} Bd5 {[%emt 0:23:03]} 16. Qxd3 {[%emt 0:02:42]} Kb8 {[%emt 0:01:47]} 17. Rfd1 {[%emt 0:49:24]} Bd6 {[%emt 0:10:52]} (17... Nxd4 $1 $11 {remains equal.} 18. Nxd4 Bxg2 19. Kxg2 Qd5+ 20. Kg1 Bc5) 18. Nxc6+ $16 {[%emt 0:00:00]} Bxc6 {[%emt 0:00:27] [#]} 19. Rxc6 $1 {[%emt 0:00:00]} Qxc6 {[%emt 0:06:19] [#]} 20. Ne5 $1 {[%emt 0:00:00]} Qb5 {[%emt 0:04:30]} 21. Nf7 {[%emt 0:00:00][%csl LRd6,LRd8,LRh8] White has more active pieces.} Qxd3 {[%emt 0:02:43]} 22. Rxd3 {[%emt 0:00:00][%cal Of7h8]} Be7 {[%emt 0:00:09]} 23. Nxd8 {[%emt 0:00:00]} (23. Rxd8+ Rxd8 24. Nxd8 Bxd8 $14) (23. Rxd8+ {simplifies} Rxd8 24. Nxd8 Bxd8 25. Be4) 23... Rxd8 {[%emt 0:00:13]} 24. Be4 {[%emt 0:00:00] This pair of bishops is nice.} Rxd3 {[%emt 0:00:26]} 25. Bxd3 {[%emt 0:00:00][%mdl 4096] Endgame KBB-KBN} g6 {[%emt 0:01:46]} (25... h6 $142) 26. Bc4 {[%emt 0:00:00]} Kc8 {[%emt 0:02:47]} 27. Bg8 {[%emt 0:00:00]} h6 {[%emt 0:00:03]} 28. Bh7 {[%emt 0:00:00]} g5 {[%emt 0:00:01]} 29. Bf5+ {[%emt 0:00:00]} Kd8 {[%emt 0:00:01]} 30. Kg2 {[%emt 0:00:00]} Ke8 {[%emt 0:00:59]} 31. Be4 {[%emt 0:00:00]} b6 {[%emt 0:00:36]} 32. Kf3 {[%emt 0:00:12]} Kf7 {[%emt 0:00:42]} 33. Kg4 {[%emt 0:01:12]} Nb5 {[%emt 0:03:50]} 34. Bd3 {[%emt 0:04:30]} Nd6 {[%emt 0:01:03]} 35. f4 {[%emt 0:00:46]} Ke6 $2 {[%emt 0:05:38]} (35... gxf4 $16 36. gxf4 (36. Kxf4 h5 $14) 36... Ne8) 36. Kh5 $18 {[%emt 0:00:55]} gxf4 {[%emt 0:00:33]} 37. gxf4 {[%emt 0:00:10]} Nf5 {[%emt 0:00:37]} 38. Bc4+ {[%emt 0:01:28]} ({Weaker is} 38. Kg6 Nh4+ 39. Kh5 (39. Kxh6 Bb4 $16) 39... Nf5 40. Bc4+ Kd7 $18) 38... Kd7 {[%emt 0:00:00]} 39. Kg6 {[%emt 0:00:14][%csl LRf5,LRf6]} Nh4+ {[%emt 0:00:21]} 40. Kxh6 {[%emt 0:00:11]} Nf3 {[%emt 0:01:11]} 41. h3 {[%emt 0:00:43]} f5 {[%emt 0:00:27]} 42. Kg7 {[%emt 0:01:12]} Bd6 {[%emt 0:00:27]} 43. Kf6 {[%emt 0:00:44]} Bxf4 {[%emt 0:00:13]} 44. Kxf5 {[%emt 0:00:12]} Bd6 {[%emt 0:00:41]} 45. Bb5+ {[%emt 0:00:42]} Kc7 {[%emt 0:00:29]} 46. Be2 {[%emt 0:00:35]} Nh4+ {[%emt 0:00:34]} 47. Kg4 {[%emt 0:00:19]} Be7 {[%emt 0:00:32]} 48. Bd3 {[%emt 0:00:31]} Kc6 {[%emt 0:00:35]} 49. Be4+ {[%emt 0:00:19]} Kb5 {[%emt 0:00:00]} 50. Bc3 {[%emt 0:00:28]} 1-0

[Event "Pan-American Collegiate-ch 2025"]
[Site "Charlotte"]
[Date "2025.01.04"]
[Round "4.25"]
[White "De Silva, L M S T"]
[Black "Lin, Dachey"]
[Result "1/2-1/2"]
[Annotator "TA"]
[ECO "D07"]
[WhiteElo "2370"]
[BlackElo "2303"]
[PlyCount "44"]
[EventDate "2025.01.02"]
[EventType "team-tourn"]
[EventCountry "USA"]
[SourceTitle "playchess.com"]
[Source "ChessBase"]
[SourceQuality "1"]
[TimeControl "5400+30"]

{[%evp 9,44,45,54,52,48,50,68,32,33,33,32,35,40,35,33,34,58,61,47,29,112,29,45,0,17,19,0,0,46,50,38,0,0,0,54,0,0]} 1. Nf3 {[%emt 0:02:02]} d5 {[%emt 0:09:31]} 2. e3 {[%emt 0:00:12]} Nc6 {[%emt 0:04:34]} 3. d4 {[%emt 0:03:48]} Nf6 {[%emt 0:06:04]} 4. c4 {[%emt 0:01:09]} e6 {[%emt 0:13:30]} 5. Nbd2 {[%emt 0:09:54]} g6 {[%emt 0:03:18]} 6. b3 {[%emt 0:05:11]} Bg7 {[%emt 0:00:13][%cal Oe6e5]} 7. Ba3 {[%emt 0:00:24]} Ne7 {[%emt 0:00:06]} 8. g3 {[%emt 0:02:01]} O-O {[%emt 0:00:05]} 9. Bg2 {[%emt 0:00:01]} Re8 {[%emt 0:00:57]} 10. O-O {[%emt 0:00:16]} b6 {[%emt 0:05:46]} 11. Rc1 {[%emt 0:04:07]} Bb7 {[%emt 0:00:09]} 12. Qc2 {[%emt 0:18:29]} Rc8 {[%emt 0:00:46]} 13. cxd5 {[%emt 0:49:26]} exd5 {[%emt 0:00:19]} 14. Ne5 {[%emt 0:00:00]} Nd7 {[%emt 0:18:51] [#]} (14... c6 $11) 15. Nd3 {[%emt 0:00:00] White is much more active.} (15. Bxe7 $1 $16 Rxe7 16. Nc6 Bxc6 17. Qxc6) 15... Nf5 $11 {[%emt 0:03:35][%cal Og7d4]} 16. Nf4 {[%emt 0:00:00]} c5 {[%emt 0:02:21]} 17. dxc5 {[%emt 0:00:00]} Nxc5 {[%emt 0:00:05]} 18. Bxc5 {[%emt 0:00:00][%cal Ob3b4] and b4! should not be overlooked} Rxc5 {[%emt 0:02:35]} (18... Ba6 $11) 19. Qd3 $14 {[%emt 0:00:00]} Ra5 {[%emt 0:00:40]} 20. Qc2 {[%emt 0:00:00]} Rc5 {[%emt 0:02:45]} 21. Qd3 {[%emt 0:00:00]} Ra5 $1 {[%emt 0:01:14]} 22. Qc2 {[%emt 0:00:00]} (22. Rfd1 $14) 22... Rc5 {[%emt 0:00:04]} 1/2-1/2

[Event "Pan-American Collegiate-ch 2025"]
[Site "Charlotte"]
[Date "2025.01.04"]
[Round "4.26"]
[White "Maiti, Milind"]
[Black "Frank, Adam"]
[Result "1/2-1/2"]
[Annotator "TA"]
[ECO "D34"]
[WhiteElo "2253"]
[BlackElo "2383"]
[PlyCount "93"]
[EventDate "2025.01.02"]
[EventType "team-tourn"]
[EventCountry "USA"]
[SourceTitle "playchess.com"]
[Source "ChessBase"]
[SourceQuality "1"]
[TimeControl "5400+30"]

{[%evp 23,93,33,28,26,71,60,70,59,94,108,94,89,94,88,71,65,100,100,98,116,120,106,138,122,124,120,163,94,132,131,128,67,58,58,64,70,66,65,86,47,46,30,29,38,53,53,53,53,53,53,53,53,53,0,0,0,54,54,54,54,57,0,0,0,0,0,0,0,0,0,0,0]} 1. d4 {[%emt 0:00:02]} d5 {[%emt 0:00:10]} 2. c4 {[%emt 0:00:04]} e6 {[%emt 0:00:06]} 3. Nc3 {[%emt 0:00:08]} c5 {[%emt 0:00:04]} 4. cxd5 {[%emt 0:00:08]} exd5 {[%emt 0:00:12]} 5. Nf3 {[%emt 0:00:14]} Nf6 {[%emt 0:00:05]} 6. g3 {[%emt 0:00:14]} Nc6 {[%emt 0:00:04]} 7. Bg2 {[%emt 0:00:08]} Be7 {[%emt 0:00:07]} 8. O-O {[%emt 0:00:11]} O-O {[%emt 0:00:05]} 9. Bg5 {[%emt 0:01:21]} c4 {[%emt 0:00:06]} 10. Ne5 {[%emt 0:00:58]} Be6 {[%emt 0:00:07]} 11. e3 {[%emt 0:00:48]} h6 {[%emt 0:00:13]} 12. Bxf6 {[%emt 0:00:27]} Bxf6 {[%emt 0:00:04]} 13. f4 {[%emt 0:00:11]} Bxe5 {[%emt 0:00:05]} 14. dxe5 {[%emt 0:00:19]} d4 {[%emt 0:15:42]} 15. exd4 {[%emt 0:04:31]} Qxd4+ {[%emt 0:00:06]} 16. Qxd4 {[%emt 0:02:54]} Nxd4 {[%emt 0:00:06]} 17. Rad1 {[%emt 0:04:57]} (17. Bxb7 Rab8 18. Be4 Rxb2 $11) 17... Nf5 {[%emt 0:04:29]} 18. Kf2 {[%emt 0:03:16] Inhibits Ne3.} (18. Bxb7 Rab8 19. Bd5 Ne3 $19 (19... Rxb2 20. Rf2 $11)) 18... h5 {[%emt 0:02:24]} 19. Na4 {[%emt 0:14:08][%cal Of1e1]} (19. Bxb7 Rab8 20. Bf3 Rxb2+ 21. Kg1 h4 $11) 19... Rab8 {[%emt 0:04:23]} 20. Nc5 {[%emt 0:02:30]} b5 {[%emt 0:01:34]} 21. Nd7 {[%emt 0:03:15]} Bxd7 {[%emt 0:10:20]} 22. Rxd7 {[%emt 0:00:06]} a5 {[%emt 0:00:33]} 23. Bd5 {[%emt 0:07:43]} Nh6 {[%emt 0:01:44]} 24. Rd1 {[%emt 0:06:18] White is much more active.} Rfc8 {[%emt 0:10:45] [#]} 25. Ra7 {[%emt 0:10:34]} (25. Bb7 $1 $18 {[%cal Rb7c8]} Rc5 26. Rd8+ Rxd8 27. Rxd8+ Kh7 28. Rd5 Rxd5 29. Bxd5) 25... c3 {[%emt 0:01:23]} 26. bxc3 {[%emt 0:02:45]} (26. Rxa5 $2 {is the wrong capture.} cxb2 27. Be4 f5 $19) 26... Rxc3 {[%emt 0:00:06]} 27. Rxa5 {[%emt 0:18:35]} (27. Kg1 $16) 27... Ng4+ $14 {[%emt 0:06:55]} 28. Ke2 {[%emt 0:04:31]} Ne3 $1 {[%emt 0:00:12]} 29. Rd4 {[%emt 0:02:02]} Nxd5 {[%emt 0:00:21]} 30. Rxd5 {[%emt 0:00:05][%mdl 4096] Endgame KRR-KRR. White is a pawn up.} b4 $1 {[%emt 0:00:24][%cal Oh5h4]} 31. Ra7 {[%emt 0:01:37]} Rc2+ {[%emt 0:10:25]} 32. Kf3 {[%emt 0:04:28] Threatens to win with Rdd7.} b3 $1 {[%emt 0:00:14]} 33. axb3 {[%emt 0:07:32]} Rxb3+ {[%emt 0:00:04]} 34. Ke4 {[%emt 0:00:00]} g6 $1 {[%emt 0:00:04]} 35. Rd8+ {[%emt 0:00:00]} (35. Rdd7 $5 Re2+ $8 36. Kd4 Rd2+ 37. Ke4 Re2+ $11) 35... Kg7 {[%emt 0:00:04]} 36. Rdd7 {[%emt 0:00:00]} Re2+ {[%emt 0:00:06]} 37. Kd4 {[%emt 0:00:00]} Rd2+ {[%emt 0:00:05]} 38. Ke4 {[%emt 0:00:00]} (38. Kc4 $14 Rxd7 39. Rxd7) 38... Re2+ $11 {[%emt 0:00:16]} 39. Kd4 {[%emt 0:00:00]} (39. Kd5 $11 Rd3+ 40. Kc4 Rxd7 41. Rxd7) 39... Rd2+ $14 {[%emt 0:00:02]} 40. Kc4 {[%emt 0:00:00]} Rxd7 {[%emt 0:00:05]} 41. Rxd7 {[%emt 0:00:00] KR-KR. White is a pawn up.} Re3 {[%emt 0:00:49][%cal Oh5h4]} 42. Kd5 {[%emt 0:00:00]} ({Better is} 42. Kd4 $14 Re1 43. Rb7) 42... Kf8 $11 {[%emt 0:00:56]} 43. Kd6 {[%emt 0:00:01]} Rd3+ {[%emt 0:02:29]} 44. Kc7 {[%emt 0:00:10]} Rc3+ {[%emt 0:00:04]} 45. Kd6 {[%emt 0:00:34]} Rd3+ {[%emt 0:00:09]} 46. Kc7 {[%emt 0:00:09]} Rc3+ {[%emt 0:00:03]} 47. Kd6 {[%emt 0:00:09]} 1/2-1/2